bitfinex/quotes_BTCUSD_20250303
["timestamp","ask_amount","ask_price","bid_price","bid_amount"]
[1741031926330,0.05290988,86111.0,86044.0,0.01498358]
[1741031926934,0.00203222,86110.0,86075.0,0.232354]
[1741031927078,0.05290988,86111.0,86076.0,0.00083051]
[1741031927243,0.05290988,86111.0,86050.0,0.0776]
[1741031927244,0.05290988,86111.0,86052.0,0.00083048]
[1741031927449,0.00203223,86110.0,86052.0,0.00083048]
[1741031927657,0.3,86108.0,86053.0,0.000831]
[1741031927868,0.3,86103.0,86045.0,0.00083186]
[1741031928136,0.00203311,86102.0,86045.0,0.00083186]
[1741031928274,0.00011871,86112.0,86045.0,0.00083186]
[1741031928478,0.00215161,86112.0,86045.0,0.00083186]
[1741031928725,0.00215161,86112.0,86053.0,5e-05]
[1741031928905,0.00011871,86112.0,86053.0,0.00088141]
[1741031929553,0.00215103,86112.0,86053.0,0.00088141]
[1741031929897,0.00011871,86112.0,86053.0,0.00088141]
[1741031930108,0.00011871,86112.0,86054.0,0.00083019]
[1741031930665,0.00011871,86112.0,86073.0,0.23236]
[1741031930883,0.00011871,86112.0,86053.0,5e-05]
[1741031931043,0.141403,86111.0,86053.0,0.00088122]
[1741031931314,0.30203291,86110.0,86053.0,0.00088122]
[1741031931498,0.00011871,86112.0,86053.0,0.00088122]
[1741031931870,0.00011871,86112.0,86053.0,0.23329422]
[1741031932068,0.00011871,86112.0,86058.0,0.232401]
[1741031932301,0.00011871,86112.0,86059.0,0.00083137]
[1741031932509,0.00011871,86112.0,86085.0,0.232328]
[1741031932701,0.00011871,86112.0,86086.0,0.00083017]
[1741031932902,0.00011871,86112.0,86068.0,0.232374]
[1741031933103,0.00011871,86112.0,86074.0,0.232356]
[1741031933262,0.00011871,86112.0,86075.0,0.00083024]
[1741031933466,0.232261,86110.0,86070.0,0.00082978]
[1741031933665,0.00203259,86109.0,86070.0,0.00082978]
[1741031933888,0.00215134,86112.0,86053.0,0.00093092]
[1741031934201,0.3,86107.0,86068.0,5e-05]
[1741031934381,0.00203293,86106.0,86068.0,5e-05]
[1741031934581,0.3,86099.0,86068.0,5e-05]
[1741031934850,0.00203302,86098.0,86068.0,5e-05]
[1741031935202,0.00011871,86112.0,86068.0,5e-05]
[1741031935402,0.3,86109.0,86068.0,5e-05]
[1741031935631,0.00203291,86108.0,86062.0,0.230439]
[1741031935804,0.3,86109.0,86063.0,0.02387496]
[1741031935988,0.3,86109.0,86063.0,0.00083106]
[1741031935989,0.00203267,86108.0,86063.0,0.00083106]
[1741031936193,0.3,86098.0,86054.0,0.00083125]
[1741031936399,0.00203325,86097.0,86055.0,0.00083209]
[1741031936833,0.00017,86110.0,86056.0,0.00162641]
[1741031937013,0.05328952,86096.0,86056.0,0.00162641]
[1741031937209,0.1364351,86095.0,86053.0,0.0001]
[1741031937410,0.15113646,86094.0,86053.0,0.0001]
[1741031937614,0.1673951,86093.0,86053.0,0.0001]
[1741031937822,0.0012011,86093.0,86053.0,0.0001]
[1741031938043,0.232335,86083.0,86053.0,0.0001]
[1741031938245,0.0012011,86082.0,86053.0,0.0001]
[1741031938418,0.232317,86090.0,86053.0,0.0017267]
[1741031938618,0.02049597,86092.0,86053.0,0.0017267]
[1741031938619,0.02049597,86092.0,86053.0,0.0017767]
[1741031939126,0.02049597,86099.0,86053.0,0.0017767]
[1741031939272,0.02061465,86099.0,86053.0,0.0017767]
[1741031939841,0.0012011,86098.0,86053.0,0.2340907]
[1741031939972,0.0012011,86098.0,86054.0,0.02344307]
[1741031940175,0.232301,86095.0,86053.0,5e-05]
[1741031940395,0.3,86083.0,86053.0,5e-05]
[1741031940596,0.232353,86076.0,86043.0,0.10541429]
[1741031940942,0.0012011,86075.0,86043.0,0.10541429]
[1741031941154,0.00011868,86099.0,86043.0,0.10541429]
[1741031941155,0.034981,86076.0,86043.0,0.10541429]
[1741031941290,0.034981,86076.0,86044.0,0.01372384]
[1741031941490,0.0012011,86075.0,86043.0,5e-05]
[1741031941693,0.532439,86044.0,86043.0,5e-05]
[1741031942093,0.71745159,86044.0,86043.0,5e-05]
[1741031942292,0.532555,86001.0,86000.0,6e-07]
[1741031942727,0.532582,85991.0,85990.0,0.0106206]
[1741031942929,0.532582,85991.0,85940.0,0.00162787]
[1741031942930,0.532631,85973.0,85940.0,0.00162787]
[1741031943133,0.532631,85973.0,85972.0,0.01594672]
[1741031943334,0.673848,85973.0,85972.0,0.01594672]
[1741031943636,0.532677,85956.0,85938.0,0.0153844]
[1741031943892,0.619276,85956.0,85955.0,0.01566888]
[1741031944049,0.619276,85956.0,85938.0,0.0153844]
[1741031944050,0.532723,85939.0,85938.0,0.0153844]
[1741031944213,0.532723,85939.0,85920.0,0.01555]
[1741031944214,0.337437,85939.0,85920.0,0.01555]
[1741031944408,0.0012011,85938.0,85920.0,0.0046008]
[1741031944616,0.01655878,85980.0,85920.0,0.0046008]
[1741031944617,0.30637357,86201.0,86200.0,33.04788088]
[1741031944843,0.91678594,86201.0,86200.0,22.99531443]
[1741031945037,3.27058809,86201.0,86200.0,9.2979153]
[1741031945274,4.07957181,86201.0,86200.0,4.67330841]
[1741031945429,4.38849742,86201.0,86200.0,1.0277232]
[1741031945631,2.715447,85959.0,85955.0,0.14571929]
[1741031945831,1.1311517,85990.0,85955.0,0.16912929]
[1741031946058,1.1311517,85991.0,85972.0,0.01555]
[1741031946251,1.1311517,85991.0,85990.0,0.01555]
[1741031946509,0.02900001,86028.0,85990.0,0.01555]
[1741031946723,0.09475307,86029.0,85990.0,0.0158904]
[1741031946925,0.0001702,85991.0,85990.0,0.0158904]
[1741031947154,0.21559004,86068.0,85986.0,0.1]
[1741031947465,0.035011,86059.0,85983.0,0.1]
[1741031947767,0.10809538,86052.0,85969.0,0.1]
[1741031947968,0.465957,86058.0,85984.0,0.1848]
[1741031947969,0.05832053,86028.0,85984.0,0.1848]
[1741031948237,0.3,86025.0,85984.0,0.1848]
[1741031948471,0.35802042,86023.0,85977.0,0.18484]
[1741031948701,4.748605,86024.0,85963.0,0.18484]
[1741031948702,0.3,86008.0,85963.0,0.18484]
[1741031948927,0.3,86003.0,85963.0,0.18484]
[1741031949187,0.3,86001.0,85963.0,0.18484]
[1741031949422,0.100998,86000.0,85963.0,0.18484]
[1741031949669,1.1311517,86029.0,85963.0,0.18495893]
[1741031949911,0.015549,86060.0,85963.0,0.28495893]
[1741031949912,0.112545,86028.0,85963.0,0.28495893]
[1741031950136,0.03397631,86052.0,85975.0,0.1]
[1741031950396,0.015549,86060.0,86001.0,0.1]
[1741031950618,0.015549,86060.0,86023.0,0.0456]
[1741031950858,0.015549,86060.0,86045.0,0.1]
[1741031951135,0.015549,86060.0,86047.0,0.07099999]
[1741031951367,0.015549,86060.0,86030.0,0.18484]
[1741031951368,0.3,86058.0,86030.0,0.18484]
[1741031951617,0.19493858,86059.0,86030.0,0.18484]
[1741031951618,0.05822158,86059.0,86030.0,0.18484]
[1741031951789,0.05822158,86059.0,86030.0,0.30187394]
[1741031952085,0.01594475,86060.0,86031.0,0.07099999]
[1741031952291,0.01594475,86060.0,86039.0,0.1]
[1741031952589,0.01594475,86060.0,86030.0,0.18338994]
[1741031953002,0.01594475,86060.0,86031.0,0.01833899]
[1741031953205,0.06825265,86059.0,86034.0,0.0455]
[1741031953406,0.09608733,86076.0,86063.0,0.1]
[1741031953608,0.015549,86078.0,86075.0,0.07099999]
[1741031953904,0.034977,86143.0,86085.0,0.17099999]
[1741031954188,0.034977,86143.0,86095.0,0.1]
[1741031954487,0.015659,86166.0,86095.0,0.1]
[1741031954690,0.015659,86166.0,86095.0,0.17099999]
[1741031954975,0.015659,86166.0,86108.0,0.1]
[1741031955149,0.37362519,86148.0,86092.0,0.1]
[1741031955366,0.015549,86148.0,86092.0,0.1]
[1741031955568,0.015549,86148.0,86086.0,0.1]
[1741031955723,0.8736138,86112.0,86059.0,0.015549]
[1741031955917,0.8736138,86112.0,86047.0,0.1848]
[1741031955918,0.02900001,86097.0,86047.0,0.1848]
[1741031956170,0.02900001,86079.0,86047.0,0.1848]
[1741031956371,0.237609,86078.0,86047.0,0.1848]
[1741031956612,0.3,86095.0,86047.0,0.1848]
[1741031956746,0.3,86093.0,86047.0,0.1848]
[1741031956946,0.3,86091.0,86047.0,0.1848]
[1741031957149,0.3,86089.0,86047.0,0.1848]
[1741031957355,0.1226,86086.0,86047.0,0.1848]
[1741031957585,0.08763203,86075.0,86047.0,0.00039575]
[1741031957804,0.232479,86029.0,86028.0,0.18484]
[1741031958101,0.3,86029.0,86028.0,0.18484]
[1741031958311,0.66636599,86029.0,86028.0,0.18484]
[1741031958514,0.43388699,86029.0,86028.0,0.18484]
[1741031958736,0.43388699,86029.0,86028.0,0.13994]
[1741031958909,0.532533,86009.0,86008.0,0.01555]
[1741031959264,0.3,85972.0,85937.0,0.01555]
[1741031959467,0.05869407,85964.0,85956.0,0.00011866]
[1741031959641,0.25030241,85963.0,85955.0,0.00011893]
[1741031959842,0.05402976,85971.0,85955.0,0.00011893]
[1741031959981,0.05402976,85971.0,85962.0,0.1]
[1741031960186,0.07734013,86008.0,85983.0,0.07244946]
[1741031960414,0.07734013,86008.0,86000.0,0.07244946]
[1741031960622,0.015549,86060.0,86018.0,0.07244946]
[1741031960850,0.01764817,86044.0,86038.0,0.07244946]
[1741031961067,0.01764817,86044.0,86017.0,0.14344945]
[1741031961295,0.01764817,86044.0,86042.0,0.07244946]
[1741031961521,0.015549,86060.0,86056.0,0.07099999]
[1741031961718,0.015549,86060.0,86042.0,0.07969441]
[1741031961719,0.015549,86060.0,86057.0,0.07244946]
[1741031962140,0.00028898,86058.0,86054.0,0.07244946]
[1741031962341,0.00028898,86058.0,86043.0,0.0759]
[1741031962517,0.00028898,86058.0,85995.0,0.07244946]
[1741031962518,0.05835528,86057.0,85995.0,0.07244946]
[1741031962743,0.00741933,86056.0,85983.0,0.07099999]
[1741031962941,0.02900001,86047.0,85973.0,0.18492]
[1741031963163,1.087447,86046.0,85992.0,0.015549]
[1741031963507,0.348662,86043.0,85973.0,0.18492]
[1741031963731,0.02900001,86034.0,85973.0,0.18492]
[1741031963879,0.3,86041.0,85981.0,0.07244946]
[1741031964080,0.124411,86040.0,85985.0,0.07244946]
[1741031964241,0.124411,86040.0,85974.0,0.02573695]
[1741031964242,0.02900001,86033.0,85973.0,0.18492]
[1741031964450,0.05850119,86031.0,85973.0,0.18492]
[1741031964664,0.3,86029.0,85973.0,0.18492]
[1741031964890,0.3,86027.0,85974.0,0.07244946]
[1741031965089,1.1311517,86054.0,85987.0,0.07099999]
[1741031965317,0.035019,86056.0,86011.0,0.07244946]
[1741031965465,0.0001697,86058.0,86024.0,0.07244946]
[1741031965665,0.00011928,86056.0,86016.0,0.04544946]
[1741031965871,0.00011928,86056.0,86029.0,0.04544946]
[1741031966070,0.00011928,86056.0,86010.0,0.0484]
[1741031966071,0.00011928,86056.0,86017.0,0.04544946]
[1741031966268,0.00011928,86056.0,85966.0,0.04544946]
[1741031966468,0.00011928,86056.0,85955.0,0.01555]
[1741031966469,0.3,86055.0,85978.0,0.04544946]
[1741031966668,1.438158,86055.0,85993.0,0.07099999]
[1741031966891,0.757489,86054.0,85979.0,0.04544946]
[1741031967092,0.757489,86054.0,85972.0,0.07099999]
[1741031967093,0.02900001,86047.0,85972.0,0.04544946]
[1741031967295,0.05868332,86043.0,85974.0,0.04544946]
[1741031967515,0.3,86033.0,85975.0,0.04544946]
[1741031967841,0.3,86031.0,85981.0,0.11644945]
[1741031967970,0.260296,86030.0,85991.0,0.04544946]
[1741031968177,0.3,86028.0,85992.0,0.04544946]
[1741031968428,0.3,86026.0,85992.0,0.11644945]
[1741031968735,0.0081,86053.0,85996.0,0.04544946]
[1741031968875,0.015549,86060.0,85955.0,0.01555]
[1741031968876,0.015549,86060.0,86007.0,0.11644945]
[1741031969143,0.05802828,86053.0,86006.0,0.04544946]
[1741031969383,0.201562,86052.0,86002.0,0.0488]
[1741031969583,0.09960337,86024.0,86002.0,0.0488]
[1741031969942,0.09960337,86024.0,86014.0,0.04544946]
[1741031970134,0.09960337,86024.0,86002.0,0.0488]
[1741031970546,0.3,86019.0,85941.0,0.07099999]
[1741031970675,3.071367,86018.0,85951.0,0.03199945]
[1741031970878,0.23264,85970.0,85941.0,0.0465]
[1741031971073,0.05879266,86022.0,85937.0,0.04754945]
[1741031971074,0.532645,85968.0,85937.0,0.01555]
[1741031971304,0.3,85966.0,85941.0,0.0003977]
[1741031971504,0.3,85964.0,85941.0,0.0003977]
[1741031971846,0.154424,85963.0,85941.0,0.0003977]
[1741031971968,0.173862,85966.0,85937.0,0.01555]
[1741031972167,0.035046,85967.0,85937.0,0.01566893]
[1741031972470,0.12448,85966.0,85944.0,0.03199945]
[1741031972799,0.05998266,85980.0,85945.0,0.03199945]
[1741031972999,0.199558,85979.0,85938.0,0.03199945]
[1741031973364,0.05883441,85978.0,85937.0,0.01566893]
[1741031973571,4.30055,85977.0,85937.0,0.01566893]
[1741031973708,0.035036,85984.0,85937.0,0.01556893]
[1741031973904,0.035036,85984.0,85947.0,0.03199945]
[1741031974125,0.035036,85984.0,85937.0,0.01556893]
[1741031974126,0.09960337,85961.0,85937.0,0.01556893]
[1741031974574,0.3,85959.0,85937.0,0.01556893]
[1741031974850,0.149683,85958.0,85937.0,0.01556893]
[1741031975150,0.3,85957.0,85937.0,0.01556893]
[1741031975373,0.357278,85956.0,85937.0,0.01556893]
[1741031975581,0.3,85954.0,85937.0,0.01556893]
[1741031975717,0.3,85954.0,85926.0,0.18488]
[1741031975718,0.3,85952.0,85926.0,0.17178832]
[1741031975917,0.253867,85953.0,85926.0,0.17178832]
[1741031975918,0.3,85950.0,85926.0,0.17178832]
[1741031976177,0.3,85948.0,85926.0,0.17178832]
[1741031976348,0.3,85946.0,85926.0,0.17178832]
[1741031976596,0.3,85944.0,85926.0,0.17178832]
[1741031976770,0.3,85942.0,85926.0,0.17178832]
[1741031976973,0.3,85942.0,85868.0,0.0453]
[1741031976974,0.02900001,85930.0,85868.0,0.0453]
[1741031977228,0.02900001,85930.0,85851.0,0.03199945]
[1741031977229,0.232834,85898.0,85851.0,0.03199945]
[1741031977357,5.9425147,85898.0,85852.0,0.03199945]
[1741031977733,2.127398,85897.0,85856.0,0.03199945]
[1741031977904,0.520836,85897.0,85863.0,0.03199945]
[1741031978124,0.158882,85896.0,85867.0,0.04754945]
[1741031978247,1.1311517,85925.0,85867.0,0.04754945]
[1741031978248,0.035067,85898.0,85875.0,0.03199945]
[1741031978446,0.108724,85897.0,85873.0,0.03199945]
[1741031978648,0.3,85896.0,85867.0,0.01555]
[1741031978863,0.33507,85896.0,85871.0,0.03199945]
[1741031979178,1.1311517,85925.0,85875.0,0.03199945]
[1741031979378,0.035066,85901.0,85875.0,0.03199945]
[1741031979575,0.3,85899.0,85867.0,0.01555]
[1741031979776,0.343102,85898.0,85867.0,0.01555]
[1741031979980,0.181843,85897.0,85867.0,0.01555]
[1741031980279,0.03518502,85901.0,85891.0,0.03199945]
[1741031980490,0.00011902,85901.0,85888.0,0.03199945]
[1741031980694,0.00011902,85901.0,85886.0,0.00299944]
[1741031980951,0.00011902,85901.0,85900.0,0.00299944]
[1741031981299,0.00011902,85901.0,85900.0,0.07399943]
[1741031981663,0.01507829,85936.0,85916.0,0.00299944]
[1741031981867,0.01507829,85936.0,85923.0,0.00299944]
[1741031982060,0.01507829,85936.0,85932.0,0.00299944]
[1741031982061,0.01519777,85936.0,85932.0,0.00299944]
[1741031982230,0.00011948,85936.0,85935.0,0.04999944]
[1741031982429,0.035043,85964.0,85963.0,0.00299944]
[1741031982638,0.232549,86004.0,85960.0,0.00299944]
[1741031982932,0.00011944,85964.0,85935.0,0.1255]
[1741031983132,0.00011944,85964.0,85940.0,0.00299944]
[1741031983335,0.00011944,85964.0,85963.0,0.00299944]
[1741031983676,0.00011944,85964.0,85935.0,0.1255]
[1741031983868,0.00011944,85964.0,85935.0,0.1205]
[1741031983998,0.3,85962.0,85935.0,0.042]
[1741031984242,0.532667,85960.0,85933.0,0.18512]
[1741031984492,0.3,85958.0,85933.0,3e-08]
[1741031984691,0.00011944,85964.0,85933.0,3e-08]
[1741031984692,0.168012,85957.0,85933.0,3e-08]
[1741031984864,0.00011944,85964.0,85947.0,0.02399943]
[1741031985077,0.106743,85963.0,85933.0,3e-08]
[1741031985284,0.01068624,85962.0,85933.0,3e-08]
[1741031985603,0.00011944,85964.0,85933.0,3e-08]
[1741031985604,0.00011944,85964.0,85948.0,0.02399943]
[1741031985812,0.00011944,85964.0,85935.0,0.0756]
[1741031986375,0.00011944,85964.0,85942.0,0.232714]
[1741031986578,0.00500055,86001.0,85948.0,0.232698]
[1741031986780,0.015549,86025.0,85950.0,0.0489]
[1741031986781,0.00500055,85997.0,85950.0,0.0489]
[1741031986983,0.00500055,86009.0,85951.0,0.00162866]
[1741031987179,0.09906624,86015.0,85950.0,0.0489]
[1741031987180,0.00500055,86001.0,85950.0,0.0489]
[1741031987379,0.00500055,85989.0,85950.0,0.0489]
[1741031987611,0.00500055,85984.0,85950.0,0.0489]
[1741031987810,0.00500055,85981.0,85950.0,0.0489]
[1741031988043,0.00500055,85971.0,85950.0,0.0489]
[1741031988201,0.00500055,85977.0,85950.0,0.0489]
[1741031988389,0.00500055,85969.0,85950.0,0.0489]
[1741031988589,0.3,85975.0,85950.0,0.0489]
[1741031988590,0.00500055,85973.0,85950.0,0.0489]
[1741031988987,0.00500055,85959.0,85950.0,0.0489]
[1741031989247,0.00500055,85947.0,85935.0,0.00011944]
[1741031989447,0.00500055,85936.0,85935.0,0.00011944]
[1741031989788,0.3,85936.0,85935.0,0.00011944]
[1741031990435,0.00500055,85948.0,85935.0,0.00011944]
[1741031990614,0.00500055,85949.0,85935.0,0.00011944]
[1741031990817,0.3,85947.0,85934.0,0.15619943]
[1741031991066,0.00500055,85944.0,85934.0,0.15619943]
[1741031991275,0.3,85945.0,85934.0,0.15619943]
[1741031991276,0.00500055,85936.0,85934.0,0.15619943]
[1741031991528,0.524016,85935.0,85934.0,0.15619943]
[1741031991817,0.42240755,85935.0,85934.0,0.15619943]
[1741031992054,0.00500055,85908.0,85896.0,0.0469]
[1741031992315,0.00500055,85902.0,85901.0,0.00049599]
[1741031992595,0.3,85906.0,85901.0,0.00049599]
[1741031992787,0.00500055,85902.0,85901.0,0.00039599]
[1741031992980,0.104202,85902.0,85901.0,0.00039599]
[1741031993203,0.00500055,85937.0,85901.0,0.00039599]
[1741031993483,0.00500055,85937.0,85884.0,0.01411579]
[1741031993484,0.00495055,85885.0,85884.0,0.01411579]
[1741031993698,0.01555,85902.0,85884.0,0.00353522]
[1741031993823,0.00495055,85915.0,85884.0,0.07153721]
[1741031994021,0.09906624,85947.0,85884.0,0.07153721]
[1741031994022,0.035057,85924.0,85885.0,0.0821]
[1741031994248,0.00495055,85911.0,85885.0,0.0821]
[1741031994443,0.30495055,85909.0,85885.0,0.0821]
[1741031994646,0.00495055,85913.0,85885.0,0.0821]
[1741031994891,0.03545487,85924.0,85886.0,0.06909461]
[1741031995103,0.00495055,85916.0,85885.0,0.0821]
[1741031995310,0.00495055,85885.0,85884.0,0.00353522]
[1741031995469,0.00495055,85890.0,85885.0,5e-05]
[1741031995807,0.3,85906.0,85865.0,0.0801]
[1741031995808,0.3,85906.0,85882.0,0.65097984]
[1741031995946,0.00495055,85903.0,85882.0,0.65097984]
[1741031996153,0.3,85901.0,85882.0,0.65097984]
[1741031996365,0.00495055,85897.0,85882.0,0.65097984]
[1741031996606,0.3,85895.0,85882.0,0.65097984]
[1741031996782,0.00039787,85901.0,85882.0,0.65097984]
[1741031997371,0.00039787,85901.0,85883.0,0.0474]
[1741031998142,0.01168641,85923.0,85884.0,0.00162993]
[1741031998495,0.01168641,85923.0,85885.0,0.18512]
[1741031998645,0.109113,85922.0,85886.0,0.08839477]
[1741031998850,0.01168641,85923.0,85886.0,0.08839477]
[1741031998851,0.01168641,85923.0,85887.0,0.0016299]
[1741031999051,0.01168641,85923.0,85888.0,0.0781]
[1741031999280,0.09906624,85938.0,85889.0,0.00162956]
[1741031999281,0.3,85937.0,85889.0,0.00162956]
[1741031999487,0.09906624,85938.0,85888.0,0.0781]
[1741031999488,0.00495055,85920.0,85888.0,0.0781]
[1741031999709,0.09906624,85938.0,85888.0,0.0781]
[1741031999710,0.30495055,85918.0,85888.0,0.0781]
[1741031999908,0.3,85916.0,85888.0,0.0781]
[1741032000118,0.3,85914.0,85888.0,0.07768]
[1741032000307,0.00990662,85937.0,85888.0,0.07768]
[1741032000308,0.09906624,85938.0,85888.0,0.07768]
[1741032000524,0.09906624,85938.0,85889.0,0.03106979]
[1741032000720,0.299134,85937.0,85889.0,0.03106979]
[1741032000924,0.1253,85937.0,85888.0,0.07768]
[1741032001135,2.018717,85937.0,85888.0,0.04867999]
[1741032001325,0.05881334,85935.0,85888.0,0.04867999]
[1741032001524,0.16209555,85934.0,85888.0,0.04872999]
[1741032001727,0.118963,85933.0,85888.0,0.04872999]
[1741032001926,0.00495055,85928.0,85888.0,5e-05]
[1741032002159,0.00495055,85926.0,85889.0,0.00163003]
[1741032002344,0.05843886,85924.0,85888.0,5e-05]
[1741032002577,0.00495055,85890.0,85888.0,5e-05]
[1741032002753,0.3,85888.0,85882.0,0.34026848]
[1741032002928,0.3,85883.0,85882.0,0.34026848]
[1741032003144,0.91547655,85883.0,85882.0,0.30710592]
[1741032003349,0.30495055,85883.0,85882.0,0.18980592]
[1741032003541,0.30495055,85883.0,85865.0,0.18512]
[1741032003542,0.00335055,85866.0,85865.0,0.18467002]
[1741032003780,0.3,85865.0,85848.0,0.0001699]
[1741032003998,0.3,85865.0,85820.0,0.23512]
[1741032003999,0.03897018,85821.0,85820.0,0.23512]
[1741032004154,0.03897018,85821.0,85820.0,0.19614982]
[1741032004155,0.516836,85821.0,85820.0,0.19614982]
[1741032004341,0.30335055,85821.0,85820.0,0.19614982]
[1741032004542,0.30335055,85821.0,85820.0,0.01102982]
[1741032004814,0.587254,85821.0,85820.0,0.01102982]
[1741032005004,0.59060455,85821.0,85820.0,0.01102982]
[1741032005217,0.59060455,85821.0,85803.0,0.0001699]
[1741032005218,0.00335055,85811.0,85803.0,0.0001699]
[1741032005335,2.26917655,85811.0,85803.0,0.0001699]
[1741032005537,0.00330055,85811.0,85803.0,0.0001699]
[1741032005744,0.00330055,85809.0,85808.0,0.00639793]
[1741032005942,0.00330055,85816.0,85808.0,0.00639793]
[1741032006195,0.00330055,85809.0,85808.0,0.00639793]
[1741032006416,0.3,85820.0,85808.0,0.00639793]
[1741032006417,0.00330055,85810.0,85808.0,0.00639793]
[1741032006604,0.01266988,85833.0,85808.0,0.00639793]
[1741032006869,0.0609447,85839.0,85828.0,0.0465]
[1741032007099,0.0609447,85839.0,85838.0,0.232997]
[1741032007306,0.01266988,85856.0,85855.0,0.1]
[1741032007520,0.015549,85937.0,85882.0,0.0001699]
[1741032007756,0.015549,85937.0,85897.0,0.07186625]
[1741032007965,0.015549,85937.0,85898.0,0.00718663]
[1741032008086,0.015549,85937.0,85882.0,0.0001699]
[1741032008298,0.00676729,85909.0,85882.0,0.10180006]
[1741032008499,0.02813375,85891.0,85882.0,0.00191954]
[1741032008705,0.02813375,85871.0,85860.0,0.00162969]
[1741032008921,0.02813375,85843.0,85814.0,0.0777]
[1741032009164,0.02813375,85857.0,85815.0,0.00163111]
[1741032009373,0.02813375,85868.0,85814.0,0.0777]
[1741032009574,0.02813375,85882.0,85814.0,0.0777]
[1741032009734,0.115549,85902.0,85828.0,0.07186625]
[1741032009735,0.3,85880.0,85828.0,0.07186625]
[1741032009947,0.015549,85902.0,85842.0,0.232985]
[1741032010147,0.015549,85902.0,85844.0,0.1271]
[1741032010372,0.02813375,85887.0,85810.0,0.09783243]
[1741032010700,0.1,85859.0,85810.0,0.09696642]
[1741032010872,0.02813375,85851.0,85810.0,0.09696642]
[1741032011050,0.00163056,85858.0,85810.0,0.09696642]
[1741032011051,0.00163056,85850.0,85844.0,5e-05]
[1741032011252,0.00163056,85859.0,85844.0,5e-05]
[1741032011595,0.00163056,85885.0,85844.0,5e-05]
[1741032011798,0.00163056,85895.0,85851.0,0.07186625]
[1741032011939,0.00163056,85895.0,85844.0,5e-05]
[1741032011940,0.12813375,85893.0,85844.0,5e-05]
[1741032012144,0.1,85878.0,85818.0,0.07186625]
[1741032012345,0.0020387,85877.0,85827.0,0.07186625]
[1741032012588,0.1,85889.0,85828.0,0.00081544]
[1741032012790,0.1,85858.0,85811.0,0.02982086]
[1741032012965,0.1,85853.0,85810.0,0.09696642]
[1741032013166,0.02813375,85850.0,85810.0,0.09696642]
[1741032013365,0.00203914,85849.0,85811.0,0.0808]
[1741032013998,0.00203914,85849.0,85812.0,0.07186625]
[1741032014225,0.00011915,85849.0,85810.0,0.08551969]
[1741032014474,0.1,85842.0,85810.0,0.08556969]
[1741032014673,0.197046,85848.0,85810.0,0.08556969]
[1741032014674,0.1,85819.0,85810.0,0.08556969]
[1741032014802,0.14313375,85817.0,85810.0,0.08556969]
[1741032014996,0.3,85836.0,85810.0,0.08556969]
[1741032015221,0.00203944,85835.0,85810.0,0.08556969]
[1741032015419,0.19937176,85872.0,85810.0,0.08556969]
[1741032015696,0.1,85857.0,85810.0,0.06956068]
[1741032015868,0.1,85835.0,85810.0,0.06956068]
[1741032016070,0.00203955,85834.0,85810.0,0.06956068]
[1741032016303,0.04313375,85828.0,85810.0,0.06956068]
[1741032016470,0.1,85824.0,85810.0,0.06961068]
[1741032016685,0.00203965,85823.0,85811.0,0.0083951]
[1741032016864,0.1,85839.0,85810.0,0.06961068]
[1741032016865,0.1,85828.0,85810.0,0.06961068]
[1741032017065,0.1,85811.0,85810.0,0.06961068]
[1741032017323,0.1,85811.0,85810.0,0.0001]
[1741032017324,1.78834575,85811.0,85810.0,0.0001]
[1741032017457,2.26314475,85811.0,85810.0,0.0001]
[1741032017651,0.00011906,85811.0,85810.0,0.0001]
[1741032018197,0.00011906,85811.0,85810.0,0.00598943]
[1741032019296,0.00203909,85855.0,85810.0,0.00598943]
[1741032019501,0.00011951,85855.0,85816.0,0.05686625]
[1741032019753,0.00011951,85855.0,85854.0,0.232953]
[1741032019957,0.0003398,85883.0,85854.0,0.2085353]
[1741032020203,0.00045924,85883.0,85854.0,0.2085353]
[1741032020377,0.00045924,85883.0,85855.0,0.00614401]
[1741032020788,0.00045924,85883.0,85865.0,0.232923]
[1741032021001,0.00045924,85883.0,85856.0,0.05686625]
[1741032021205,0.00045924,85883.0,85854.0,0.18524]
[1741032021405,0.00045924,85883.0,85857.0,0.00614401]
[1741032021636,0.00045924,85883.0,85854.0,0.18524]
[1741032021877,0.00045924,85883.0,85858.0,0.00614401]
[1741032022058,0.00045924,85883.0,85854.0,0.18524]
[1741032022403,0.00045924,85883.0,85877.0,0.232891]
[1741032022591,0.00045924,85883.0,85855.0,0.00614401]
[1741032022796,0.00045924,85883.0,85854.0,0.18524]
[1741032022797,0.04313375,85873.0,85854.0,0.18524]
[1741032023003,0.1,85870.0,85856.0,0.00614401]
[1741032023295,0.04313375,85863.0,85855.0,0.00512001]
[1741032023433,0.04313375,85863.0,85854.0,0.18524]
[1741032023434,0.3,85859.0,85854.0,0.18524]
[1741032023633,0.1,85855.0,85854.0,0.18524]
[1741032023897,0.1,85860.0,85854.0,0.18524]
[1741032024145,0.1,85855.0,85854.0,0.18524]
[1741032024341,2.77518482,85855.0,85854.0,0.18378364]
[1741032024565,0.1,85838.0,85810.0,0.0002699]
[1741032024712,0.1,85818.0,85810.0,0.0002699]
[1741032024877,0.00203975,85817.0,85810.0,0.0002699]
[1741032025077,0.00203976,85817.0,85810.0,0.0002699]
[1741032025349,0.10841,85816.0,85810.0,0.0002699]
[1741032025522,0.1,85840.0,85810.0,0.0002699]
[1741032025719,0.00203953,85839.0,85803.0,0.17098012]
[1741032025942,0.1,85828.0,85803.0,0.17098012]
[1741032026152,0.1,85824.0,85803.0,0.17137726]
[1741032026354,0.3,85826.0,85803.0,0.17137726]
[1741032026583,0.1,85862.0,85804.0,0.00145713]
[1741032026812,0.1003398,85883.0,85805.0,0.0495]
[1741032026813,0.1,85874.0,85805.0,0.0495]
[1741032026960,0.1,85864.0,85806.0,0.05055073]
[1741032027138,0.07424849,85902.0,85806.0,0.05055073]
[1741032027139,0.02148708,85904.0,85809.0,0.1]
[1741032027336,0.187243,85903.0,85829.0,0.1]
[1741032027624,0.31386494,85902.0,85815.0,0.00163057]
[1741032027753,0.05868224,85847.0,85814.0,0.01555]
[1741032027959,0.05815056,85830.0,85814.0,0.01173325]
[1741032028181,1.3563417,85848.0,85814.0,0.01173325]
[1741032028182,1.883994,85829.0,85814.0,0.01173325]
[1741032028389,0.22519,85848.0,85814.0,0.01173325]